lending/lending_fUSD_20250121
["ID","MTS","AMOUNT","RATE_DAILY","PERIOD"]
[349843079,1737457845425,-257.53506391,0.00019452,2]
[349843080,1737457845434,-500.0,0.00019452,2]
[349843081,1737457845444,-500.0,0.00019452,2]
[349843082,1737457845454,-524.55,0.00019452,2]
[349843083,1737457845463,-500.0,0.00019452,2]
[349843084,1737457845474,-500.0,0.00019452,2]
[349843085,1737457845484,-510.08335765,0.00019452,2]
[349843086,1737457845494,-500.0,0.00019452,2]
[349843087,1737457845503,-500.0,0.00019452,2]
[349843088,1737457845514,-500.0,0.00019452,2]
[349843089,1737457845523,-500.0,0.00019452,2]
[349843090,1737457845533,-300.0,0.00019452,2]
[349843091,1737457845542,-500.0,0.00019452,2]
[349843092,1737457845552,-500.0,0.00019452,2]
[349843093,1737457845563,-500.0,0.00019452,2]
[349843094,1737457845573,-500.0,0.00019452,2]
[349843095,1737457845583,-500.0,0.00019452,2]
[349843096,1737457845593,-291.74,0.00019452,2]
[349843097,1737457845602,-500.0,0.00019452,2]
[349843098,1737457845612,-579.69,0.00019452,2]
[349843099,1737457845622,-630.88,0.00019452,2]
[349843100,1737457845631,-500.0,0.00019452,2]
[349843101,1737457845642,-500.0,0.00019452,2]
[349843102,1737457845651,-647.31,0.00019452,2]
[349843103,1737457845661,-521.3110304,0.00019452,2]
[349843104,1737457845670,-500.0,0.00019452,2]
[349843105,1737457845679,-500.0,0.00019452,2]
[349843106,1737457845688,-500.0,0.00019452,2]
[349843107,1737457845697,-500.0,0.00019452,2]
[349843108,1737457845706,-500.0,0.00019452,2]
[349843109,1737457845715,-500.0,0.00019452,2]
[349843110,1737457845724,-500.0,0.00019452,2]
[349843111,1737457845734,-500.0,0.00019452,2]
[349843112,1737457845743,-500.0,0.00019452,2]
[349843113,1737457845751,-622.4047729,0.00019452,2]
[349843115,1737457845760,-500.0,0.00019452,2]
[349843116,1737457845769,-500.0,0.00019452,2]
[349843117,1737457845778,-500.0,0.00019452,2]
[349843118,1737457845786,-500.0,0.00019452,2]
[349843119,1737457845796,-505.79160372,0.00019452,2]
[349843121,1737457845805,-500.0,0.00019452,2]
[349843122,1737457845815,-500.0,0.00019452,2]
[349843123,1737457845825,-502.11290081,0.00019452,2]
[349843124,1737457845833,-500.0,0.00019452,2]
[349843125,1737457845843,-500.0,0.00019452,2]
[349843126,1737457845852,-641.99,0.00019452,2]
[349843127,1737457845861,-600.2,0.00019452,2]
[349843128,1737457845871,-506.42700406,0.00019452,2]
[349843129,1737457845880,-500.0,0.00019452,2]
[349843130,1737457845890,-500.93908961,0.00019452,2]
[349843131,1737457845900,-500.0,0.00019452,2]
[349843132,1737457845910,-500.0,0.00019452,2]
[349843133,1737457845919,-500.0,0.00019452,2]
[349843134,1737457845929,-515.06812098,0.00019452,2]
[349843135,1737457845938,-427.87022911,0.00019452,2]
[349843136,1737457845947,-500.0,0.00019452,2]
[349843137,1737457845956,-653.54,0.00019452,2]
[349843138,1737457845966,-500.0,0.00019452,2]
[349843139,1737457845975,-500.0,0.00019452,2]
[349843140,1737457845984,-469.55259026,0.00019452,2]
[349843141,1737457845993,-500.0,0.00019452,2]
[349843142,1737457846002,-500.0,0.00019452,2]
[349843143,1737457846011,-500.0,0.00019452,2]
[349843144,1737457846021,-500.0,0.00019452,2]
[349843145,1737457846030,-919.0,0.00019452,2]
[349843146,1737457846039,-174.17,0.00019452,2]
[349843147,1737457846049,-500.0,0.00019452,2]
[349843148,1737457846058,-500.0,0.00019452,2]
[349843149,1737457846067,-265.49391343,0.00019452,2]
[349843150,1737457846078,-500.0,0.00019452,2]
[349843151,1737457846087,-500.0,0.00019452,2]
[349843152,1737457846097,-500.0,0.00019452,2]
[349843153,1737457846106,-500.0,0.00019452,2]
[349843154,1737457846117,-500.0,0.00019452,2]
[349843155,1737457846126,-500.0,0.00019452,2]
[349843156,1737457846136,-500.0,0.00019452,2]
[349843157,1737457846145,-500.0,0.00019452,2]
[349843158,1737457846155,-500.0,0.00019452,2]
[349843159,1737457846164,-500.0,0.00019452,2]
[349843160,1737457846173,-500.0,0.00019452,2]
[349843161,1737457846183,-500.0,0.00019452,2]
[349843162,1737457846192,-500.0,0.00019452,2]
[349843163,1737457846205,-500.0,0.00019452,2]
[349843164,1737457846214,-500.0,0.00019452,2]
[349843165,1737457846223,-500.0,0.00019452,2]
[349843166,1737457846232,-500.0,0.00019452,2]
[349843167,1737457846242,-500.0,0.00019452,2]
[349843168,1737457846251,-500.0,0.00019452,2]
[349843169,1737457846261,-500.0,0.00019452,2]
[349843170,1737457846271,-500.0,0.00019452,2]
[349843171,1737457846281,-500.0,0.00019452,2]
[349843172,1737457846291,-500.0,0.00019452,2]
[349843173,1737457846300,-500.0,0.00019452,2]
[349843174,1737457846310,-500.0,0.00019452,2]
[349843175,1737457846319,-500.0,0.00019452,2]
[349843176,1737457846328,-500.0,0.00019452,2]
[349843177,1737457846338,-500.0,0.00019452,2]
[349843179,1737457846347,-500.0,0.00019452,2]
[349843181,1737457846356,-500.0,0.00019452,2]
[349843183,1737457846367,-500.0,0.00019452,2]
[349843185,1737457846377,-500.0,0.00019452,2]
[349843187,1737457846388,-500.0,0.00019452,2]
[349843189,1737457846396,-500.0,0.00019452,2]
[349843191,1737457846406,-619.7226514,0.00019452,2]
[349843193,1737457846415,-508.29912956,0.00019452,2]
[349843195,1737457846424,-500.0,0.00019452,2]
[349843197,1737457846433,-500.0,0.00019452,2]
[349843199,1737457846443,-506.84319439,0.00019452,2]
[349843201,1737457846453,-500.0,0.00019452,2]
[349843203,1737457846463,-500.0,0.00019452,2]
[349843205,1737457846473,-500.0,0.00019452,2]
[349843207,1737457846483,-172.06,0.00019452,2]
[349843209,1737457846492,-500.0,0.00019452,2]
[349843211,1737457846502,-500.0,0.00019452,2]
[349843213,1737457846511,-521.49577962,0.00019452,2]
[349843214,1737457846521,-500.0,0.00019452,2]
[349843217,1737457846531,-500.0,0.00019452,2]
[349843218,1737457846541,-500.0,0.00019452,2]
[349843220,1737457846550,-500.53123562,0.00019452,2]
[349843222,1737457846560,-500.0,0.00019452,2]
[349843225,1737457846569,-500.0,0.00019452,2]
[349843227,1737457846578,-659.66,0.00019452,2]
[349843229,1737457846588,-500.0,0.00019452,2]
[349843231,1737457846597,-500.0,0.00019452,2]
[349843233,1737457846607,-500.0,0.00019452,2]
[349843235,1737457846616,-500.0,0.00019452,2]
[349843238,1737457846626,-500.0,0.00019452,2]
[349843241,1737457846635,-500.0,0.00019452,2]
[349843244,1737457846646,-500.0,0.00019452,2]
[349843247,1737457846655,-500.0,0.00019452,2]
[349843250,1737457846665,-159.58703794,0.00019452,2]
[349843253,1737457846674,-500.0,0.00019452,2]
[349843256,1737457846684,-611.94,0.00019452,2]
[349843259,1737457846694,-500.0,0.00019452,2]
[349843262,1737457846703,-500.0,0.00019452,2]
[349843265,1737457846712,-500.0,0.00019452,2]
[349843267,1737457846721,-505.48303075,0.00019452,2]
[349843269,1737457846730,-500.0,0.00019452,2]
[349843271,1737457846740,-500.0,0.00019452,2]
[349843273,1737457846748,-386.4070317,0.00019452,2]
[349843275,1737457846758,-500.0,0.00019452,2]
[349843277,1737457846766,-500.0,0.00019452,2]
[349843279,1737457846776,-500.0,0.00019452,2]
[349843281,1737457846791,-500.0,0.00019452,2]
[349843283,1737457846801,-500.0,0.00019452,2]
[349843285,1737457846811,-500.0,0.00019452,2]
[349843287,1737457846821,-500.0,0.00019452,2]
[349843289,1737457846830,-500.0,0.00019452,2]
[349843291,1737457846839,-500.0,0.00019452,2]
[349843293,1737457846848,-510.16768844,0.00019452,2]
[349843295,1737457846858,-500.0,0.00019452,2]
[349843297,1737457846868,-500.0,0.00019452,2]
[349843299,1737457846878,-500.0,0.00019452,2]
[349843301,1737457846888,-500.0,0.00019452,2]
[349843303,1737457846897,-500.0,0.00019452,2]
[349843305,1737457846909,-500.0,0.00019452,2]
[349843307,1737457846920,-500.0,0.00019452,2]
[349843309,1737457846929,-500.0,0.00019452,2]
[349843311,1737457846939,-500.0,0.00019452,2]
[349843313,1737457846949,-508.14278359,0.00019452,2]
[349843315,1737457846959,-367.66416296,0.00019452,2]
[349843317,1737457846968,-500.0,0.00019452,2]
[349843319,1737457846979,-500.0,0.00019452,2]
[349843322,1737457846989,-500.0,0.00019452,2]
[349843324,1737457846999,-500.0,0.00019452,2]
[349843326,1737457847008,-500.0,0.00019452,2]
[349843328,1737457847018,-500.0,0.00019452,2]
[349843330,1737457847028,-500.0,0.00019452,2]
[349843332,1737457847037,-500.0,0.00019452,2]
[349843334,1737457847046,-500.0,0.00019452,2]
[349843335,1737457847056,-500.0,0.00019452,2]
[349843337,1737457847065,-500.0,0.00019452,2]
[349843339,1737457847075,-500.0,0.00019452,2]
[349843341,1737457847084,-511.17,0.00019452,2]
[349843343,1737457847094,-519.18,0.00019452,2]
[349843345,1737457847103,-500.0,0.00019452,2]
[349843347,1737457847112,-500.0,0.00019452,2]
[349843349,1737457847123,-500.0,0.00019452,2]
[349843351,1737457847132,-500.0,0.00019452,2]
[349843353,1737457847143,-500.0,0.00019452,2]
[349843355,1737457847154,-500.0,0.00019452,2]
[349843357,1737457847163,-500.0,0.00019452,2]
[349843359,1737457847172,-500.0,0.00019452,2]
[349843361,1737457847182,-557.70395023,0.00019452,2]
[349843363,1737457847192,-500.0,0.00019452,2]
[349843365,1737457847202,-500.0,0.00019452,2]
[349843368,1737457847218,-505.6,0.00019452,2]
[349843370,1737457847227,-1136.43,0.00019452,2]
[349843372,1737457847237,-500.0,0.00019452,2]
[349843374,1737457847247,-500.0,0.00019452,2]
[349843376,1737457847257,-500.0,0.00019452,2]
[349843378,1737457847267,-500.0,0.00019452,2]
[349843380,1737457847277,-500.0,0.00019452,2]
[349843382,1737457847289,-500.0,0.00019452,2]
[349843384,1737457847299,-500.0,0.00019452,2]
[349843386,1737457847309,-500.0,0.00019452,2]
[349843388,1737457847318,-500.0,0.00019452,2]
[349843390,1737457847327,-500.0,0.00019452,2]
[349843392,1737457847337,-500.0,0.00019452,2]
[349843394,1737457847347,-504.07261432,0.00019452,2]
[349843396,1737457847357,-500.0,0.00019452,2]
[349843398,1737457847367,-500.0,0.00019452,2]
[349843400,1737457847377,-270.77,0.00019452,2]
[349843402,1737457847388,-506.74204295,0.00019452,2]
[349843404,1737457847398,-500.0,0.00019452,2]
[349843406,1737457847407,-500.0,0.00019452,2]
[349843408,1737457847417,-507.20396339,0.00019452,2]
[349843410,1737457847426,-500.0,0.00019452,2]
[349843412,1737457847436,-501.84089132,0.00019452,2]
[349843414,1737457847446,-507.40777632,0.00019452,2]
[349843416,1737457847456,-500.0,0.00019452,2]
[349843418,1737457847466,-500.0,0.00019452,2]
[349843420,1737457847475,-512.1258472,0.00019452,2]
[349843422,1737457847485,-518.94,0.00019452,2]
[349843424,1737457847495,-500.0,0.00019452,2]
[349843426,1737457847504,-500.0,0.00019452,2]
[349843428,1737457847514,-500.0,0.00019452,2]
[349843430,1737457847524,-500.0,0.00019452,2]
[349843432,1737457847533,-547.08082043,0.00019452,2]
[349843434,1737457847543,-330.56328008,0.00019452,2]
[349843436,1737457847552,-500.0,0.00019452,2]
[349843438,1737457847562,-500.0,0.00019452,2]
[349843440,1737457847572,-500.0,0.00019452,2]
[349843442,1737457847582,-500.0,0.00019452,2]
[349843444,1737457847590,-500.0,0.00019452,2]
[349843446,1737457847600,-500.0,0.00019452,2]
[349843448,1737457847609,-500.0,0.00019452,2]
[349843450,1737457847619,-500.0,0.00019452,2]
[349843452,1737457847628,-500.0,0.00019452,2]
[349843454,1737457847639,-500.0,0.00019452,2]
[349843456,1737457847648,-500.0,0.00019452,2]
[349843458,1737457847657,-507.19347406,0.00019452,2]
[349843460,1737457847666,-1123.28,0.00019452,2]
[349843462,1737457847677,-500.0,0.00019452,2]
[349843465,1737457847687,-5189.03,0.00019452,2]
[349843467,1737457847697,-196.90580864,0.00019452,2]
[349843468,1737457847706,-500.0,0.00019452,2]
[349843471,1737457847716,-513.21980189,0.00019452,2]
[349843473,1737457847726,-500.0,0.00019452,2]
[349843475,1737457847735,-505.84031339,0.00019452,2]
[349843477,1737457847744,-502.5134542,0.00019452,2]
[349843479,1737457847753,-204.36,0.00019452,2]
[349843481,1737457847763,-500.0,0.00019452,2]
[349843483,1737457847772,-500.0,0.00019452,2]
[349843485,1737457847782,-673.79,0.00019452,2]
[349843487,1737457847791,-500.0,0.00019452,2]
[349843489,1737457847801,-500.0,0.00019452,2]
[349843491,1737457847810,-500.0,0.00019452,2]
[349843493,1737457847819,-500.0,0.00019452,2]
[349843495,1737457847829,-500.0,0.00019452,2]
[349843497,1737457847839,-514.75026539,0.00019452,2]
[349843499,1737457847849,-500.0,0.00019452,2]
[349843501,1737457847859,-500.0,0.00019452,2]
[349843503,1737457847868,-500.0,0.00019452,2]
[349843505,1737457847878,-663.28,0.00019452,2]
[349843507,1737457847888,-550.53190832,0.00019452,2]
[349843509,1737457847898,-506.03113378,0.00019452,2]
[349843510,1737457847908,-522.95,0.00019452,2]
[349843512,1737457847918,-500.0,0.00019452,2]
[349843514,1737457847928,-541.01728264,0.00019452,2]
[349843516,1737457847938,-515.75088203,0.00019452,2]
[349843519,1737457847948,-383.248718,0.00019452,2]
[349843521,1737457847958,-500.0,0.00019452,2]
[349843523,1737457847967,-675.8,0.00019452,2]
[349843525,1737457847976,-224.61950356,0.00019452,2]
[349843527,1737457847987,-507.43,0.00019452,2]
[349843529,1737457847997,-500.0,0.00019452,2]
[349843531,1737457848008,-500.0,0.00019452,2]
[349843533,1737457848022,-1670.22,0.00019452,2]
[349843535,1737457848037,-661.82,0.00019452,2]
[349843537,1737457848051,-649.18,0.00019452,2]
[349843539,1737457848062,-500.0,0.00019452,2]
[349843541,1737457848072,-500.0,0.00019452,2]
[349843543,1737457848083,-500.0,0.00019452,2]
[349843545,1737457848093,-213.24,0.00019452,2]
[349843546,1737457848103,-1246.53,0.00019452,2]
[349843549,1737457848115,-500.0,0.00019452,2]
[349843551,1737457848126,-500.0,0.00019452,2]
[349843553,1737457848136,-500.0,0.00019452,2]
[349843555,1737457848148,-662.59,0.00019452,2]
[349843557,1737457848158,-712.45,0.00019452,2]
[349843559,1737457848168,-2017.73,0.00019452,2]
[349843561,1737457848178,-500.0,0.00019452,2]
[349843563,1737457848188,-1214.83,0.00019452,2]
[349843565,1737457848200,-405.35607517,0.00019452,2]
[349843613,1737457848716,-594.64392483,0.00019452,2]
[349843615,1737457848727,-25.85607317,0.00019452,2]
[349843617,1737457848739,-584.77392683,0.00019452,2]
[349843619,1737457848750,-964.91,0.00019452,2]
[349843621,1737457848760,-524.92,0.00019452,2]
[349843623,1737457848770,-500.0,0.00019452,2]
[349843625,1737457848780,-6.89607317,0.00019452,2]
[349843628,1737457848793,-248.66071883,0.00019452,2]
[349843630,1737457848803,-31.33928117,0.00019452,2]
[349843631,1737457848825,-468.66071883,0.00019452,2]
[349843632,1737457848835,-500.0,0.00019452,2]
[349843633,1737457848845,-500.0,0.00019452,2]
[349843634,1737457848855,-500.0,0.00019452,2]
[349843635,1737457848864,-43.27928151,0.00019452,2]
[349843636,1737457848877,-571.91071849,0.00019452,2]
[349843637,1737457848889,-1365.53,0.00019452,2]
[349843638,1737457848899,-500.0,0.00019452,2]
[349843640,1737457848909,-500.0,0.00019452,2]
[349843642,1737457848920,-973.38,0.00019452,2]
[349843644,1737457848930,-153.95516136,0.00019452,2]
[349843646,1737457848945,-346.04483864,0.00019452,2]
[349843648,1737457848955,-500.0,0.00019452,2]
[349843650,1737457848965,-500.0,0.00019452,2]
[349843652,1737457848975,-668.31,0.00019452,2]
[349843655,1737457848986,-2048.3,0.00019452,2]
[349843656,1737457848997,-500.0,0.00019452,2]
[349843659,1737457849006,-618.11123127,0.00019452,2]
[349843661,1737457849019,-1354.83876873,0.00019452,2]
[349843663,1737457849029,-500.0,0.00019452,2]
[349843665,1737457849039,-500.0,0.00019452,2]
[349843667,1737457849048,-1104.67,0.00019452,2]
[349843669,1737457849058,-401.65184945,0.00019452,2]
[349843672,1737457849077,-291.75815055,0.00019452,2]
[349843674,1737457849087,-1043.27,0.00019452,2]
[349843676,1737457849097,-599.11,0.00019452,2]
[349843678,1737457849107,-322.90153861,0.00019452,2]
[349843681,1737457849128,-500.0,0.00019178,2]
[349843683,1737457849139,-177.09846139,0.00019452,2]
[349843685,1737457849150,-500.0,0.00019452,2]
[349843687,1737457849161,-196.2463034,0.00019452,2]
[349843689,1737457849171,-540.92009279,0.00019452,2]
[349843691,1737457849184,-550.0,0.00019452,2]
[349843738,1737457849692,-1033.5894906,0.00019078,2]
[349843740,1737457849704,-369.1589122,0.00019078,2]
[349843742,1737457849715,-3597.2515972,0.00019078,2]
[349843744,1737457849725,-500.0,0.00019178,2]
[349843746,1737457849735,-186.52990721,0.00019452,2]
[349843748,1737457849744,-544.1,0.00019452,2]
[349843750,1737457849753,-500.0,0.00019452,2]
[349843752,1737457849763,-500.0,0.00019452,2]
[349843754,1737457849773,-500.0,0.00019452,2]
[349843756,1737457849783,-2199.24,0.00019452,2]
[349843758,1737457849793,-578.82,0.00019452,2]
[349843761,1737457849802,-500.0,0.00019452,2]
[349843763,1737457849810,-500.0,0.00019452,2]
[349843765,1737457849820,-500.0,0.00019452,2]
[349843767,1737457849829,-583.48338537,0.00019452,2]
[349843769,1737457849839,-678.07,0.00019452,2]
[349843771,1737457849846,-500.0,0.00019452,2]
[349843773,1737457849855,-500.0,0.00019452,2]
[349843775,1737457849865,-962.95,0.00019452,2]
[349843777,1737457849874,-500.0,0.00019452,2]
[349843779,1737457849884,-500.0,0.00019452,2]
[349843781,1737457849892,-500.0,0.00019452,2]
[349843782,1737457849902,-500.0,0.00019452,2]
[349843784,1737457849910,-694.91,0.00019452,2]
[349843786,1737457849919,-500.0,0.00019452,2]
[349843788,1737457849927,-500.0,0.00019452,2]
[349843790,1737457849936,-802.36,0.00019452,2]
[349843792,1737457849946,-500.0,0.00019452,2]
[349843794,1737457849955,-1780.11,0.00019452,2]
[349843796,1737457849965,-2223.58,0.00019452,2]
[349843798,1737457849974,-636.41,0.00019452,2]
[349843800,1737457849984,-500.0,0.00019452,2]
[349843802,1737457849991,-503.8739683,0.00019452,2]
[349843804,1737457849999,-500.0,0.00019452,2]
[349843806,1737457850008,-1478.14,0.00019452,2]
[349843808,1737457850017,-500.0,0.00019452,2]
[349843810,1737457850025,-801.87,0.00019452,2]
[349843812,1737457850033,-500.0,0.00019452,2]
[349843814,1737457850043,-1731.85,0.00019452,2]
[349843816,1737457850052,-500.0,0.00019452,2]
[349843818,1737457850061,-500.0,0.00019452,2]
[349843820,1737457850068,-747.66,0.00019452,2]
[349843821,1737457850077,-500.0,0.00019452,2]
[349843824,1737457850087,-503.20349476,0.00019452,2]
[349843825,1737457850096,-500.0,0.00019452,2]
[349843827,1737457850102,-500.0,0.00019452,2]
[349843829,1737457850111,-561.73,0.00019452,2]
[349843831,1737457850121,-500.0,0.00019452,2]
[349843833,1737457850131,-500.0,0.00019452,2]
[349843835,1737457850142,-553.33,0.00019452,2]
[349843837,1737457850151,-500.0,0.00019452,2]
[349843840,1737457850161,-500.0,0.00019452,2]
[349843842,1737457850170,-1161.08,0.00019452,2]
[349843843,1737457850176,-500.0,0.00019452,2]
[349843845,1737457850185,-500.0,0.00019452,2]
[349843848,1737457850196,-500.0,0.00019452,2]
[349843850,1737457850204,-500.0,0.00019452,2]
[349843852,1737457850214,-573.02,0.00019452,2]
[349843854,1737457850223,-500.0,0.00019452,2]
[349843855,1737457850231,-500.0,0.00019452,2]
[349843858,1737457850240,-500.0,0.00019452,2]
[349843860,1737457850251,-500.0,0.00019452,2]
[349843862,1737457850261,-561.94,0.00019452,2]
[349843863,1737457850268,-500.0,0.00019452,2]
[349843865,1737457850278,-500.0,0.00019452,2]
[349843867,1737457850286,-500.0,0.00019452,2]
[349843869,1737457850294,-539.23,0.00019452,2]
[349843871,1737457850303,-500.0,0.00019452,2]
[349843873,1737457850312,-500.0,0.00019452,2]
[349843875,1737457850321,-500.0,0.00019452,2]
[349843877,1737457850331,-938.77,0.00019452,2]
[349843879,1737457850340,-500.0,0.00019452,2]
[349843881,1737457850349,-500.0,0.00019452,2]
[349843883,1737457850358,-1482.95,0.00019452,2]
[349843885,1737457850367,-692.78,0.00019452,2]
[349843887,1737457850376,-500.0,0.00019452,2]
[349843889,1737457850385,-500.0,0.00019452,2]
[349843891,1737457850393,-500.0,0.00019452,2]
[349843893,1737457850402,-500.0,0.00019452,2]
[349843895,1737457850411,-523.17151456,0.00019452,2]
[349843897,1737457850420,-638.54,0.00019452,2]
[349843899,1737457850431,-500.0,0.00019452,2]
[349843901,1737457850440,-500.0,0.00019452,2]
[349843903,1737457850448,-1164.13,0.00019452,2]
[349843905,1737457850457,-500.0,0.00019452,2]
[349843906,1737457850465,-2001.08,0.00019452,2]
[349843909,1737457850474,-505.68054413,0.00019452,2]
[349843911,1737457850482,-500.0,0.00019452,2]
[349843913,1737457850491,-202.08,0.00019452,2]
[349843915,1737457850500,-500.0,0.00019452,2]
[349843918,1737457850510,-644.1,0.00019452,2]
[349843920,1737457850517,-516.97734537,0.00019452,2]
[349843922,1737457850526,-1288.2,0.00019452,2]
[349843924,1737457850533,-500.0,0.00019452,2]
[349843926,1737457850542,-500.0,0.00019452,2]
[349843928,1737457850551,-500.0,0.00019452,2]
[349843931,1737457850560,-500.0,0.00019452,2]
[349843932,1737457850568,-755.39,0.00019452,2]
[349843935,1737457850576,-506.82192045,0.00019452,2]
[349843937,1737457850584,-3006.28,0.00019452,2]
[349843938,1737457850591,-1295.2,0.00019452,2]
[349843940,1737457850601,-500.0,0.00019452,2]
[349843943,1737457850610,-504.48820357,0.00019452,2]
[349843945,1737457850618,-500.0,0.00019452,2]
[349843947,1737457850626,-364.65472953,0.00019452,2]
[349843948,1737457850633,-171.09,0.0001952,2]
[349843956,1737457850683,-1386.67098503,0.00019627,2]
[349843958,1737457850692,-502.94594265,0.00019704,2]
[349843960,1737457850698,-500.0,0.00019704,2]
[349843962,1737457850707,-6903.3831826,0.00019705,2]
[349843964,1737457850714,-453.07051858,0.00019726,2]
[349843966,1737457850720,-500.0,0.00019726,2]
[349843968,1737457850728,-500.0,0.00019726,2]
[349843970,1737457850735,-500.0,0.00019726,2]
[349843972,1737457850744,-500.0,0.00019726,2]
[349843974,1737457850752,-500.0,0.00019726,2]
[349843975,1737457850759,-500.0,0.00019726,2]
[349843977,1737457850767,-500.0,0.00019726,2]
[349843979,1737457850774,-500.0,0.00019726,2]
[349843981,1737457850782,-500.0,0.00019726,2]
[349843983,1737457850790,-500.0,0.00019726,2]
[349843985,1737457850799,-500.0,0.00019726,2]
[349843987,1737457850808,-500.0,0.00019726,2]
[349843989,1737457850816,-300.0,0.00019726,2]
[349843992,1737457850824,-500.0,0.00019726,2]
[349843994,1737457850833,-500.0,0.00019726,2]
[349843995,1737457850840,-500.0,0.00019726,2]
[349843997,1737457850848,-500.0,0.00019726,2]
[349843999,1737457850856,-500.0,0.00019726,2]
[349844001,1737457850864,-500.0,0.00019726,2]
[349844003,1737457850871,-579.69,0.00019726,2]
[349844005,1737457850877,-500.0,0.00019726,2]
[349844007,1737457850884,-500.0,0.00019726,2]
[349844009,1737457850893,-647.31,0.00019726,2]
[349844011,1737457850901,-500.0,0.00019726,2]
[349844013,1737457850908,-500.0,0.00019726,2]
[349844015,1737457850917,-500.0,0.00019726,2]
[349844017,1737457850926,-500.0,0.00019726,2]
[349844019,1737457850932,-525.80564637,0.00019726,2]
[349844021,1737457850941,-288.83471578,0.00019726,2]
[349844023,1737457850948,-500.0,0.00019726,2]
[349844025,1737457850956,-500.0,0.00019726,2]
[349844027,1737457850963,-500.0,0.00019726,2]
[349844029,1737457850973,-500.0,0.00019726,2]
[349844031,1737457850980,-500.0,0.00019726,2]
[349844033,1737457850987,-500.0,0.00019726,2]
[349844035,1737457850993,-500.0,0.00019726,2]
[349844037,1737457851001,-500.0,0.00019726,2]
[349844038,1737457851008,-500.0,0.00019726,2]
[349844040,1737457851017,-641.99,0.00019726,2]
[349844042,1737457851026,-248.1,0.00019726,2]
[349844044,1737457851034,-500.0,0.00019726,2]
[349844047,1737457851043,-500.0,0.00019726,2]
[349844049,1737457851051,-653.54,0.00019726,2]
[349844051,1737457851058,-500.0,0.00019726,2]
[349844052,1737457851065,-500.0,0.00019726,2]
[349844054,1737457851072,-543.93062594,0.00019726,2]
[349844056,1737457851081,-500.0,0.00019726,2]
[349844058,1737457851088,-500.0,0.00019726,2]
[349844060,1737457851095,-500.0,0.00019726,2]
[349844062,1737457851103,-919.0,0.00019726,2]
[349844064,1737457851110,-500.0,0.00019726,2]
[349844066,1737457851118,-500.0,0.00019726,2]
[349844068,1737457851128,-500.0,0.00019726,2]
[349844070,1737457851138,-500.0,0.00019726,2]
[349844071,1737457851148,-500.0,0.00019726,2]
[349844073,1737457851155,-500.0,0.00019726,2]
[349844075,1737457851161,-500.0,0.00019726,2]
[349844077,1737457851169,-500.0,0.00019726,2]
[349844078,1737457851178,-500.0,0.00019726,2]
[349844079,1737457851186,-500.0,0.00019726,2]
[349844080,1737457851195,-500.0,0.00019726,2]
[349844081,1737457851202,-500.0,0.00019726,2]